fUST/lending_fUST_20250702
["ID","MTS","AMOUNT","RATE_DAILY","PERIOD"]
[368997491,1751429439171,-460.0,0.00016797,2]
[368997492,1751429439181,-457.05292024,0.00016797,2]
[368997493,1751429439191,-460.0,0.00016797,2]
[368997494,1751429439200,-462.55198156,0.00016797,2]
[368997495,1751429439210,-375.06989145,0.00016797,2]
[368997496,1751429439219,-460.0,0.00016797,2]
[368997497,1751429439229,-460.0,0.00016797,2]
[368997498,1751429439238,-460.0,0.00016797,2]
[368997499,1751429439247,-461.24108595,0.00016797,2]
[368997500,1751429439256,-462.87758902,0.00016797,2]
[368997501,1751429439266,-460.0,0.00016797,2]
[368997502,1751429439275,-460.0,0.00016797,2]
[368997503,1751429439285,-460.0,0.00016797,2]
[368997504,1751429439294,-460.0,0.00016797,2]
[368997505,1751429439304,-460.0,0.00016797,2]
[368997506,1751429439313,-464.83653949,0.00016797,2]
[368997507,1751429439322,-460.0,0.00016797,2]
[368997508,1751429439331,-460.0,0.00016797,2]
[368997509,1751429439340,-460.0,0.00016797,2]
[368997510,1751429439349,-460.0,0.00016797,2]
[368997511,1751429439358,-346.14872909,0.00016797,2]
[368997512,1751429439367,-240.17202662,0.00016797,2]
[368997513,1751429439376,-749.69,0.00016797,2]
[368997514,1751429439385,-460.0,0.00016797,2]
[368997515,1751429439393,-460.0,0.00016797,2]
[368997516,1751429439401,-460.0,0.00016797,2]
[368997517,1751429439410,-460.0,0.00016797,2]
[368997518,1751429439419,-460.0,0.00016797,2]
[368997519,1751429439428,-460.0,0.00016797,2]
[368997520,1751429439437,-460.0,0.00016797,2]
[368997521,1751429439446,-460.0,0.00016797,2]
[368997522,1751429439455,-460.0,0.00016797,2]
[368997523,1751429439464,-478.66959338,0.00016797,2]
[368997524,1751429439473,-460.0,0.00016797,2]
[368997525,1751429439482,-460.0,0.00016797,2]
[368997526,1751429439491,-462.99732036,0.00016797,2]
[368997527,1751429439501,-460.0,0.00016797,2]
[368997528,1751429439510,-607.86394755,0.00016797,2]
[368997529,1751429439519,-460.0,0.00016797,2]
[368997530,1751429439528,-514.85773696,0.00016797,2]
[368997531,1751429439538,-463.35143911,0.00016797,2]
[368997532,1751429439551,-508.45467302,0.00016797,2]
[368997533,1751429439560,-461.42528736,0.00016797,2]
[368997534,1751429439569,-460.0,0.00016797,2]
[368997535,1751429439579,-460.0,0.00016797,2]
[368997536,1751429439591,-460.0,0.00016797,2]
[368997537,1751429439601,-460.0,0.00016797,2]
[368997538,1751429439610,-460.0,0.00016797,2]
[368997539,1751429439620,-460.0,0.00016797,2]
[368997540,1751429439630,-460.0,0.00016797,2]
[368997541,1751429439640,-240.46300817,0.00016797,2]
[368997542,1751429439650,-460.0,0.00016797,2]
[368997543,1751429439660,-460.0,0.00016797,2]
[368997544,1751429439671,-460.0,0.00016797,2]
[368997545,1751429439684,-460.0,0.00016797,2]
[368997546,1751429439694,-460.0,0.00016797,2]
[368997547,1751429439703,-460.0,0.00016797,2]
[368997548,1751429439713,-460.0,0.00016797,2]
[368997549,1751429439723,-460.0,0.00016797,2]
[368997550,1751429439732,-460.0,0.00016797,2]
[368997551,1751429439742,-410.51240365,0.00016797,2]
[368997552,1751429439751,-460.0,0.00016797,2]
[368997553,1751429439761,-461.6381827,0.00016797,2]
[368997554,1751429439770,-460.0,0.00016797,2]
[368997555,1751429439780,-460.0,0.00016797,2]
[368997556,1751429439789,-461.14487704,0.00016797,2]
[368997557,1751429439799,-462.00197765,0.00016797,2]
[368997558,1751429439809,-460.0,0.00016797,2]
[368997559,1751429439819,-460.76954495,0.00016797,2]
[368997560,1751429439828,-242.04831617,0.00016797,2]
[368997561,1751429439838,-462.72269697,0.00016797,2]
[368997562,1751429439848,-460.0,0.00016797,2]
[368997563,1751429439858,-608.97742755,0.00016797,2]
[368997564,1751429439867,-460.0,0.00016797,2]
[368997565,1751429439876,-460.0,0.00016797,2]
[368997566,1751429439888,-460.0,0.00016797,2]
[368997567,1751429439898,-460.0,0.00016797,2]
[368997568,1751429439908,-462.53125576,0.00016797,2]
[368997569,1751429439917,-514.0031919,0.00016797,2]
[368997570,1751429439927,-460.0,0.00016797,2]
[368997571,1751429439936,-462.49216386,0.00016797,2]
[368997572,1751429439945,-460.0,0.00016797,2]
[368997573,1751429439955,-464.58264807,0.00016797,2]
[368997574,1751429439964,-460.0,0.00016797,2]
[368997575,1751429439974,-453.70582935,0.00016797,2]
[368997576,1751429439983,-463.00669964,0.00016797,2]
[368997577,1751429439992,-461.8375437,0.00016797,2]
[368997578,1751429440002,-460.0,0.00016797,2]
[368997579,1751429440013,-460.0,0.00016797,2]
[368997580,1751429440023,-460.0,0.00016797,2]
[368997581,1751429440033,-460.0,0.00016797,2]
[368997582,1751429440043,-460.0,0.00016797,2]
[368997583,1751429440052,-461.33462573,0.00016797,2]
[368997584,1751429440062,-460.0,0.00016797,2]
[368997585,1751429440072,-460.0,0.00016797,2]
[368997586,1751429440081,-460.0,0.00016797,2]
[368997587,1751429440091,-500.0,0.00016797,2]
[368997588,1751429440100,-500.0,0.00016797,2]
[368997589,1751429440110,-460.0,0.00016797,2]
[368997590,1751429440119,-460.0,0.00016797,2]
[368997591,1751429440129,-460.0,0.00016797,2]
[368997592,1751429440139,-462.29683728,0.00016797,2]
[368997593,1751429440149,-607.47745777,0.00016797,2]
[368997594,1751429440159,-464.17238314,0.00016798,2]
[368997595,1751429440169,-473.10634136,0.00016798,2]
[368997596,1751429440179,-461.2091172,0.00016798,2]
[368997597,1751429440189,-460.0,0.00016798,2]
[368997598,1751429440199,-460.0,0.00016798,2]
[368997599,1751429440209,-580.0,0.00016798,2]
[368997600,1751429440220,-463.02135726,0.00016798,2]
[368997601,1751429440230,-460.0,0.00016798,2]
[368997602,1751429440241,-424.16478215,0.00016798,2]
[368997603,1751429440259,-464.15347017,0.00016798,2]
[368997604,1751429440269,-197.01469031,0.00016798,2]
[368997605,1751429440279,-572.80777414,0.00016798,2]
[368997606,1751429440288,-460.0,0.00016798,2]
[368997608,1751429440299,-460.0,0.00016798,2]
[368997610,1751429440308,-460.0,0.00016798,2]
[368997612,1751429440318,-597.07531054,0.00016798,2]
[368997614,1751429440327,-460.0,0.00016798,2]
[368997616,1751429440337,-519.61067731,0.00016798,2]
[368997617,1751429440346,-500.0,0.00016798,2]
[368997618,1751429440355,-500.0,0.00016798,2]
[368997619,1751429440364,-518.31268499,0.00016798,2]
[368997620,1751429440374,-486.75,0.00016798,2]
[368997621,1751429440383,-460.0,0.00016798,2]
[368997622,1751429440393,-460.0,0.00016798,2]
[368997623,1751429440402,-1295.38,0.00016798,2]
[368997624,1751429440412,-1459.66,0.00016798,2]
[368997625,1751429440421,-473.56665665,0.00016798,2]
[368997626,1751429440431,-460.0,0.00016798,2]
[368997628,1751429440441,-460.0,0.00016798,2]
[368997630,1751429440450,-460.0,0.00016798,2]
[368997632,1751429440459,-460.0,0.00016798,2]
[368997634,1751429440469,-461.73571542,0.00016798,2]
[368997636,1751429440478,-460.0,0.00016798,2]
[368997638,1751429440488,-460.0,0.00016798,2]
[368997640,1751429440497,-460.0,0.00016798,2]
[368997642,1751429440507,-590.97,0.00016798,2]
[368997644,1751429440517,-374.88800127,0.00016798,2]
[368997646,1751429440527,-460.0,0.00016798,2]
[368997648,1751429440536,-460.0,0.00016798,2]
[368997650,1751429440545,-500.0,0.00016798,2]
[368997652,1751429440555,-500.0,0.00016798,2]
[368997654,1751429440564,-500.0,0.00016798,2]
[368997656,1751429440573,-500.0,0.00016798,2]
[368997658,1751429440582,-500.0,0.00016798,2]
[368997660,1751429440592,-500.0,0.00016798,2]
[368997662,1751429440602,-500.0,0.00016798,2]
[368997664,1751429440611,-500.0,0.00016798,2]
[368997666,1751429440621,-500.0,0.00016798,2]
[368997668,1751429440630,-505.13405533,0.00016798,2]
[368997670,1751429440640,-191406.77635021,0.00016799,2]
[368997672,1751429440649,-500.0,0.00016872,2]
[368997674,1751429440659,-249.37976391,0.00016873,2]
[368997676,1751429440668,-503.65245171,0.00016873,2]
[368997678,1751429440678,-500.0,0.00016873,2]
[368997680,1751429440687,-500.0,0.00016873,2]
[368997682,1751429440697,-502.05536569,0.00016873,2]
[368997684,1751429440706,-500.0,0.00016873,2]
[368997686,1751429440715,-501.28741432,0.00016873,2]
[368997688,1751429440724,-500.0,0.00016873,2]
[368997690,1751429440734,-500.0,0.00016873,2]
[368997692,1751429440743,-500.0,0.00016873,2]
[368997694,1751429440753,-500.0,0.00016873,2]
[368997696,1751429440763,-500.0,0.00016873,2]
[368997698,1751429440772,-500.0,0.00016873,2]
[368997701,1751429440782,-500.0,0.00016873,2]
[368997702,1751429440791,-159.48163281,0.00016873,2]
[368997705,1751429440801,-354.68223066,0.00016873,2]
[368997707,1751429440811,-316.59744444,0.00016873,2]
[368997709,1751429440820,-500.87524837,0.00016873,2]
[368997711,1751429440829,-500.0,0.00016873,2]
[368997713,1751429440838,-500.0,0.00016873,2]
[368997715,1751429440847,-500.78710485,0.00016873,2]
[368997717,1751429440856,-500.0,0.00016873,2]
[368997718,1751429440866,-500.0,0.00016892,2]
[368997720,1751429440876,-460.0,0.00016893,2]
[368997723,1751429440888,-460.0,0.00016893,2]
[368997725,1751429440899,-460.0,0.00016893,2]
[368997727,1751429440908,-296.21072939,0.00016893,2]
[368997729,1751429440917,-460.0,0.00016893,2]
[368997731,1751429440927,-460.0,0.00016893,2]
[368997732,1751429440936,-460.0,0.00016893,2]
[368997734,1751429440946,-522.74,0.00016893,2]
[368997736,1751429440955,-460.0,0.00016893,2]
[368997738,1751429440965,-460.0,0.00016893,2]
[368997740,1751429440975,-460.0,0.00016893,2]
[368997741,1751429440985,-460.0,0.00016893,2]
[368997743,1751429440994,-460.0,0.00016893,2]
[368997745,1751429441003,-460.0,0.00016893,2]
[368997747,1751429441012,-463.17847568,0.00016893,2]
[368997749,1751429441022,-460.0,0.00016893,2]
[368997751,1751429441031,-460.0,0.00016893,2]
[368997753,1751429441041,-460.0,0.00016893,2]
[368997755,1751429441051,-460.0,0.00016893,2]
[368997757,1751429441060,-460.0,0.00016893,2]
[368997759,1751429441070,-460.0,0.00016893,2]
[368997761,1751429441080,-460.0,0.00016893,2]
[368997763,1751429441089,-460.0,0.00016893,2]
[368997776,1751429441196,-460.0,0.00016893,2]
[368997778,1751429441206,-460.0,0.00016893,2]
[368997780,1751429441215,-460.0,0.00016893,2]
[368997782,1751429441225,-522.2626017,0.00016893,2]
[368997784,1751429441234,-460.0,0.00016893,2]
[368997786,1751429441243,-460.0,0.00016893,2]
[368997788,1751429441252,-460.0,0.00016893,2]
[368997790,1751429441263,-460.0,0.00016893,2]
[368997792,1751429441272,-460.0,0.00016893,2]
[368997794,1751429441281,-460.0,0.00016893,2]
[368997796,1751429441289,-460.0,0.00016893,2]
[368997798,1751429441298,-460.0,0.00016893,2]
[368997800,1751429441307,-460.0,0.00016893,2]
[368997802,1751429441316,-460.0,0.00016893,2]
[368997804,1751429441326,-460.0,0.00016893,2]
[368997806,1751429441334,-460.0,0.00016893,2]
[368997807,1751429441343,-460.0,0.00016893,2]
[368997810,1751429441355,-460.0,0.00016893,2]
[368997811,1751429441364,-460.0,0.00016893,2]
[368997814,1751429441374,-460.0,0.00016893,2]
[368997816,1751429441383,-460.0,0.00016893,2]
[368997818,1751429441393,-460.0,0.00016893,2]
[368997820,1751429441403,-500.0,0.00016893,2]
[368997822,1751429441412,-234.45005181,0.00016893,2]
[368997824,1751429441421,-460.9134066,0.00016893,2]
[368997826,1751429441431,-460.0,0.00016893,2]
[368997828,1751429441441,-460.0,0.00016893,2]
[368997830,1751429441451,-460.0,0.00016893,2]
[368997831,1751429441460,-461.62948516,0.00016893,2]
[368997833,1751429441469,-460.0,0.00016893,2]
[368997835,1751429441478,-460.0,0.00016893,2]
[368997837,1751429441488,-460.0,0.00016893,2]
[368997839,1751429441497,-461.03450177,0.00016893,2]
[368997842,1751429441507,-460.0,0.00016893,2]
[368997844,1751429441516,-461.82369815,0.00016893,2]
[368997846,1751429441526,-460.0,0.00016893,2]
[368997847,1751429441536,-155.38403398,0.00016893,2]
[368997849,1751429441546,-460.0,0.00016893,2]
[368997851,1751429441556,-460.0,0.00016893,2]
[368997853,1751429441566,-460.0,0.00016893,2]
[368997855,1751429441575,-460.0,0.00016893,2]
[368997858,1751429441585,-460.0,0.00016893,2]
[368997860,1751429441594,-460.0,0.00016893,2]
[368997861,1751429441603,-460.0,0.00016893,2]
[368997864,1751429441612,-460.0,0.00016893,2]
[368997865,1751429441622,-500.0,0.00016893,2]
[368997868,1751429441632,-500.0,0.00016894,2]
[368997870,1751429441641,-500.0,0.00016894,2]
[368997872,1751429441650,-500.0,0.00016894,2]
[368997874,1751429441659,-500.0,0.00016894,2]
[368997876,1751429441669,-500.0,0.00016894,2]
[368997878,1751429441678,-500.0,0.00016894,2]
[368997880,1751429441688,-461.22273866,0.00016895,2]
[368997882,1751429441697,-460.0,0.00016895,2]
[368997884,1751429441706,-460.96865606,0.00016895,2]
[368997886,1751429441715,-462.1782674,0.00016895,2]
[368997888,1751429441724,-357.79778547,0.00016895,2]
[368997890,1751429441733,-460.0,0.00016895,2]
[368997892,1751429441742,-460.0,0.00016895,2]
[368997894,1751429441751,-460.0,0.00016895,2]
[368997896,1751429441761,-460.0,0.00016895,2]
[368997898,1751429441770,-433.89910828,0.00016895,2]
[368997900,1751429441780,-468.59178882,0.00016895,2]
[368997902,1751429441790,-462.87522521,0.00016895,2]
[368997904,1751429441799,-461.81660935,0.00016895,2]
[368997906,1751429441808,-463.39042022,0.00016895,2]
[368997908,1751429441817,-460.0,0.00016895,2]
[368997910,1751429441827,-460.0,0.00016895,2]
[368997912,1751429441836,-462.02095455,0.00016895,2]
[368997914,1751429441846,-269.41428729,0.00016895,2]
[368997916,1751429441855,-461.76147371,0.00016895,2]
[368997918,1751429441864,-410.72,0.00016895,2]
[368997920,1751429441873,-464.80686025,0.00016895,2]
[368997922,1751429441883,-461.73352579,0.00016895,2]
[368997924,1751429441896,-460.0,0.00016895,2]
[368997926,1751429441905,-460.97622335,0.00016895,2]
[368997928,1751429441919,-460.0,0.00016895,2]
[368997930,1751429441929,-460.0,0.00016895,2]
[368997932,1751429441939,-462.67560324,0.00016895,2]
[368997935,1751429441948,-460.0,0.00016895,2]
[368997937,1751429441959,-460.0,0.00016895,2]
[368997939,1751429441969,-460.8608571,0.00016895,2]
[368997941,1751429441978,-463.36074144,0.00016895,2]
[368997943,1751429441988,-460.0,0.00016895,2]
[368997945,1751429441997,-461.68902487,0.00016895,2]
[368997947,1751429442007,-461.28892041,0.00016895,2]
[368997949,1751429442016,-462.46714449,0.00016895,2]
[368997951,1751429442026,-460.0,0.00016895,2]
[368997953,1751429442035,-460.76195055,0.00016895,2]
[368997955,1751429442044,-462.19350754,0.00016895,2]
[368997957,1751429442054,-461.02729342,0.00016895,2]
[368997959,1751429442063,-463.12772684,0.00016895,2]
[368997961,1751429442072,-489.96085255,0.00016895,2]
[368997963,1751429442082,-461.88034738,0.00016895,2]
[368997965,1751429442091,-460.0,0.00016895,2]
[368997967,1751429442100,-460.0,0.00016895,2]
[368997969,1751429442109,-460.0,0.00016895,2]
[368997971,1751429442118,-448.95204566,0.00016895,2]
[368997973,1751429442127,-460.0,0.00016895,2]
[368997974,1751429442136,-460.0,0.00016895,2]
[368997976,1751429442146,-460.0,0.00016895,2]
[368997978,1751429442155,-500.0,0.00016895,2]
[368997980,1751429442164,-460.0,0.00016895,2]
[368997982,1751429442174,-461.43640602,0.00016895,2]
[368997984,1751429442183,-460.0,0.00016895,2]
[368997986,1751429442192,-461.44448051,0.00016895,2]
[368997988,1751429442203,-463.90437326,0.00016895,2]
[368997991,1751429442213,-460.0,0.00016895,2]
[368997992,1751429442223,-460.0,0.00016895,2]
[368997994,1751429442232,-461.5953334,0.00016895,2]
[368997996,1751429442242,-460.0,0.00016895,2]
[368997998,1751429442251,-460.0,0.00016895,2]
[368998000,1751429442261,-460.6205193,0.00016895,2]
[368998002,1751429442270,-460.0,0.00016895,2]
[368998004,1751429442280,-460.0,0.00016895,2]
[368998006,1751429442290,-312.21728326,0.00016895,2]
[368998007,1751429442299,-460.0,0.00016895,2]
[368998008,1751429442308,-460.0,0.00016895,2]
[368998009,1751429442317,-460.0,0.00016895,2]
[368998010,1751429442327,-447.36223661,0.00016895,2]
[368998011,1751429442337,-460.0,0.00016895,2]
[368998012,1751429442346,-500.0,0.00016895,2]
[368998013,1751429442356,-460.0,0.00016895,2]
[368998014,1751429442365,-460.0,0.00016895,2]
[368998015,1751429442375,-461.57381795,0.00016895,2]
[368998016,1751429442385,-460.0,0.00016895,2]
[368998017,1751429442394,-462.2509085,0.00016895,2]
[368998018,1751429442403,-463.19978051,0.00016895,2]
[368998019,1751429442412,-462.77495135,0.00016895,2]
[368998020,1751429442421,-460.0,0.00016895,2]
[368998021,1751429442431,-460.0,0.00016895,2]
[368998022,1751429442440,-460.0,0.00016895,2]
[368998023,1751429442449,-460.0,0.00016895,2]
[368998024,1751429442458,-460.0,0.00016895,2]
[368998025,1751429442468,-460.0,0.00016895,2]
[368998026,1751429442477,-460.0,0.00016895,2]
[368998027,1751429442487,-460.0,0.00016895,2]
[368998028,1751429442495,-460.0,0.00016895,2]
[368998029,1751429442505,-460.0,0.00016895,2]
[368998030,1751429442514,-460.0,0.00016895,2]
[368998031,1751429442523,-460.85879196,0.00016895,2]
[368998032,1751429442532,-460.0,0.00016895,2]
[368998033,1751429442541,-460.0,0.00016895,2]
[368998034,1751429442550,-461.87712267,0.00016895,2]
[368998035,1751429442560,-460.0,0.00016895,2]
[368998036,1751429442569,-460.0,0.00016895,2]
[368998038,1751429442578,-460.0,0.00016895,2]
[368998040,1751429442587,-460.0,0.00016895,2]
[368998042,1751429442596,-460.43244261,0.00016895,2]
[368998044,1751429442606,-467.7391462,0.00016895,2]
[368998046,1751429442615,-460.0,0.00016895,2]
[368998048,1751429442624,-460.0,0.00016895,2]
[368998050,1751429442634,-460.82259531,0.00016895,2]
[368998052,1751429442643,-245.15835823,0.00016895,2]
[368998055,1751429442653,-155.60013287,0.00016895,2]
[368998056,1751429442662,-460.0,0.00016895,2]
[368998058,1751429442671,-460.0,0.00016895,2]
[368998060,1751429442681,-460.0,0.00016895,2]
[368998062,1751429442690,-461.28374335,0.00016895,2]
[368998065,1751429442700,-583.66484223,0.00016895,2]
[368998066,1751429442710,-460.0,0.00016895,2]
[368998069,1751429442720,-460.0,0.00016895,2]
[368998071,1751429442730,-460.0,0.00016895,2]
[368998073,1751429442739,-403.20697024,0.00016895,2]
[368998075,1751429442748,-460.0,0.00016895,2]
[368998077,1751429442757,-460.0,0.00016895,2]
[368998079,1751429442767,-460.75891915,0.00016895,2]
[368998081,1751429442776,-464.67560573,0.00016895,2]
[368998084,1751429442786,-461.10778801,0.00016895,2]
[368998086,1751429442795,-403.28109699,0.00016895,2]
[368998088,1751429442804,-460.0,0.00016895,2]
[368998090,1751429442815,-460.0,0.00016895,2]
[368998092,1751429442824,-460.0,0.00016895,2]
[368998094,1751429442833,-460.0,0.00016895,2]
[368998096,1751429442842,-461.30413259,0.00016895,2]
[368998098,1751429442852,-460.0,0.00016895,2]
[368998100,1751429442861,-599.43160752,0.00016895,2]
[368998102,1751429442870,-460.984333,0.00016895,2]
[368998104,1751429442879,-460.0,0.00016895,2]
[368998105,1751429442891,-460.0,0.00016895,2]
[368998108,1751429442901,-460.0,0.00016895,2]
[368998110,1751429442910,-460.0,0.00016895,2]
[368998112,1751429442919,-460.0,0.00016895,2]
[368998115,1751429442929,-460.0,0.00016895,2]
[368998117,1751429442938,-460.0,0.00016895,2]
[368998119,1751429442948,-500.0,0.00016896,2]
[368998121,1751429442957,-500.0,0.00016897,2]
[368998123,1751429442967,-500.0,0.00016897,2]
[368998134,1751429442976,-500.0,0.00016897,2]
[368998136,1751429443076,-500.0,0.00016897,2]
[368998139,1751429443085,-344.4,0.00016897,2]
[368998141,1751429443094,-464.85622415,0.00016898,2]
[368998143,1751429443103,-462.92391788,0.00016898,2]
[368998145,1751429443112,-433.00541238,0.00016898,2]
[368998147,1751429443122,-460.0,0.00016898,2]
[368998149,1751429443131,-408.10083653,0.00016898,2]
[368998151,1751429443140,-461.8239894,0.00016898,2]
[368998153,1751429443150,-460.0,0.00016898,2]
[368998155,1751429443161,-460.0,0.00016898,2]
[368998157,1751429443170,-460.0,0.00016898,2]
[368998159,1751429443180,-460.909749,0.00016898,2]
[368998161,1751429443195,-190.60362536,0.00016898,2]
[368998163,1751429443205,-423.60251303,0.00016898,2]
[368998165,1751429443214,-461.07548813,0.00016898,2]
[368998167,1751429443223,-460.0,0.00016898,2]
[368998169,1751429443232,-461.69046481,0.00016898,2]
[368998171,1751429443241,-463.38776488,0.00016898,2]
[368998173,1751429443250,-460.0,0.00016898,2]
[368998174,1751429443260,-460.0,0.00016898,2]
[368998176,1751429443269,-460.67849044,0.00016898,2]
[368998178,1751429443278,-504.72475516,0.00016898,2]
[368998180,1751429443288,-500.0,0.00016898,2]
[368998182,1751429443297,-500.0,0.00016898,2]
[368998184,1751429443306,-500.0,0.00016899,2]
[368998186,1751429443315,-500.0,0.00016899,2]
[368998188,1751429443325,-500.0,0.00016899,2]
[368998190,1751429443334,-500.0,0.00016899,2]
[368998192,1751429443343,-206.17,0.00016899,2]
[368998194,1751429443352,-500.0,0.00016899,2]
[368998196,1751429443362,-500.0,0.00016899,2]
[368998198,1751429443371,-500.0,0.00016899,2]
[368998200,1751429443380,-500.0,0.00016899,2]
[368998202,1751429443389,-500.0,0.00016899,2]
[368998204,1751429443398,-500.0,0.00016899,2]
[368998206,1751429443407,-417.01743261,0.00016899,2]
[368998208,1751429443416,-460.0,0.00017069,2]
[368998210,1751429443425,-460.0,0.00017069,2]
[368998212,1751429443435,-399.36013052,0.00017069,2]
[368998215,1751429443444,-460.0,0.00017069,2]
[368998218,1751429443453,-460.0,0.00017069,2]
[368998220,1751429443462,-460.0,0.00017069,2]
[368998222,1751429443471,-460.0,0.00017069,2]
[368998224,1751429443480,-460.0,0.00017069,2]
[368998226,1751429443490,-460.0,0.00017069,2]
[368998228,1751429443499,-636.07,0.00017069,2]
[368998230,1751429443508,-792.04,0.00017069,2]
[368998232,1751429443518,-460.0,0.00017069,2]
[368998234,1751429443527,-460.0,0.00017069,2]
[368998236,1751429443536,-460.0,0.00017069,2]
[368998238,1751429443545,-460.0,0.00017069,2]
[368998240,1751429443555,-460.0,0.00017069,2]
[368998242,1751429443564,-460.0,0.00017069,2]
[368998244,1751429443573,-460.0,0.00017069,2]
[368998246,1751429443582,-460.0,0.00017069,2]
[368998248,1751429443591,-637.91,0.00017069,2]
[368998250,1751429443600,-508.51,0.0001707,2]
[368998252,1751429443610,-460.0,0.0001707,2]
[368998254,1751429443619,-510.08,0.0001707,2]
[368998256,1751429443627,-593.76222642,0.0001707,2]
[368998258,1751429443636,-460.0,0.0001707,2]
[368998260,1751429443646,-460.0,0.0001707,2]
[368998262,1751429443655,-543.59412294,0.0001707,2]
[368998264,1751429443664,-269.59129564,0.0001707,2]
[368998266,1751429443674,-460.0,0.0001707,2]
[368998268,1751429443683,-460.0,0.0001707,2]
[368998270,1751429443692,-423.39074498,0.0001707,2]
[368998272,1751429443701,-376.5171809,0.0001707,2]
[368998274,1751429443710,-460.0,0.0001707,2]
[368998276,1751429443720,-460.0,0.0001707,2]
[368998278,1751429443729,-1601.06,0.0001707,2]
[368998280,1751429443738,-460.0,0.0001707,2]
[368998282,1751429443747,-460.0,0.0001707,2]
[368998284,1751429443756,-460.0,0.0001707,2]
[368998286,1751429443765,-460.0,0.0001707,2]
[368998288,1751429443775,-460.0,0.0001707,2]
[368998290,1751429443784,-460.0,0.0001707,2]
[368998292,1751429443793,-460.0,0.0001707,2]
[368998294,1751429443803,-463.43314922,0.0001707,2]
[368998296,1751429443812,-543.95,0.0001707,2]
[368998298,1751429443821,-460.0,0.0001707,2]
[368998300,1751429443830,-460.0,0.0001707,2]
[368998302,1751429443840,-462.84582298,0.0001707,2]
[368998304,1751429443849,-460.0,0.0001707,2]
[368998306,1751429443859,-460.0,0.0001707,2]
[368998308,1751429443868,-460.0,0.0001707,2]
[368998310,1751429443878,-494.42219509,0.0001707,2]
[368998312,1751429443888,-485.33,0.0001707,2]
[368998314,1751429443898,-460.0,0.0001707,2]
[368998316,1751429443907,-574.73058245,0.0001707,2]
[368998318,1751429443916,-460.0,0.0001707,2]
[368998320,1751429443926,-460.0,0.0001707,2]
[368998322,1751429443936,-460.0,0.0001707,2]
[368998324,1751429443945,-460.0,0.0001707,2]
[368998326,1751429443955,-460.0,0.0001707,2]
[368998328,1751429443967,-460.0,0.00017071,2]
[368998330,1751429443976,-460.0,0.00017071,2]
[368998331,1751429443985,-460.0,0.00017071,2]
[368998333,1751429443994,-460.0,0.00017071,2]
[368998335,1751429444003,-460.0,0.00017071,2]
[368998338,1751429444014,-460.0,0.00017071,2]
[368998340,1751429444023,-460.0,0.00017071,2]
[368998342,1751429444033,-460.0,0.00017071,2]
[368998344,1751429444042,-460.0,0.00017071,2]
[368998346,1751429444051,-460.0,0.00017071,2]
[368998347,1751429444060,-460.0,0.00017071,2]
[368998350,1751429444070,-242.56224434,0.00017071,2]
[368998352,1751429444079,-460.0,0.00017071,2]
[368998353,1751429444089,-460.0,0.00017071,2]
[368998355,1751429444098,-460.0,0.00017071,2]
[368998357,1751429444107,-475.56341081,0.00017071,2]